bitfinex/quotes_BTCUSD_20240803
["timestamp","ask_amount","ask_price","bid_price","bid_amount"]
[1722649371964,0.01155706,61074.0,61073.0,0.999]
[1722649372423,0.122801,61074.0,61073.0,0.999]
[1722649372623,0.614007,61074.0,61073.0,0.999]
[1722649372927,0.13435806,61074.0,61073.0,0.999]
[1722649373352,0.62556406,61074.0,61073.0,0.999]
[1722649374203,1.00723599,61074.0,61073.0,0.999]
[1722649374422,0.87116706,61074.0,61073.0,0.999]
[1722649374678,0.37996106,61074.0,61073.0,0.999]
[1722649375601,0.62556406,61074.0,61073.0,0.999]
[1722649376032,0.37996106,61074.0,61073.0,0.999]
[1722649376409,0.62556406,61074.0,61073.0,0.999]
[1722649376545,0.37996106,61074.0,61073.0,0.999]
[1722649376748,0.62556406,61074.0,61073.0,0.999]
[1722649377008,0.01155706,61074.0,61073.0,0.999]
[1722649377208,0.27042645,61074.0,61073.0,0.999]
[1722649377427,0.99567839,61074.0,61073.0,0.999]
[1722649377583,1.40176126,61074.0,61073.0,0.999]
[1722649377785,1.40176126,61074.0,61073.0,0.999913]
[1722649377988,1.39259126,61074.0,61073.0,0.999913]
[1722649378158,1.41259126,61074.0,61073.0,0.999913]
[1722649378353,1.42259126,61074.0,61073.0,0.999913]
[1722649378597,1.80449426,61074.0,61073.0,0.999913]
[1722649379001,1.60042054,61074.0,61073.0,0.999913]
[1722649379213,1.9045705,61074.0,61073.0,0.999913]
[1722649380002,2.0774705,61074.0,61073.0,0.999913]
[1722649380205,2.3230735,61074.0,61073.0,0.999913]
[1722649380405,2.0774705,61074.0,61073.0,0.999913]
[1722649381046,2.3230735,61074.0,61073.0,0.999913]
[1722649381252,2.5686765,61074.0,61073.0,0.769573]
[1722649381452,2.5073765,61074.0,61073.0,0.710973]
[1722649381651,2.17533512,61074.0,61073.0,0.710973]
[1722649381855,2.51567252,61074.0,61073.0,0.710973]
[1722649382008,2.51567252,61074.0,61073.0,0.678225]
[1722649382204,2.0244649,61074.0,61073.0,0.612729]
[1722649382650,1.8515649,61074.0,61073.0,0.612729]
[1722649382853,1.5629619,61074.0,61073.0,0.612729]
[1722649383256,1.5829619,61074.0,61073.0,0.612729]
[1722649383458,1.82848774,61074.0,61073.0,0.612729]
[1722649383662,2.10096767,61074.0,61073.0,0.579981]
[1722649383916,2.10096767,61074.0,61073.0,0.27437579]
[1722649383917,2.59217367,61074.0,61073.0,0.27437579]
[1722649384291,2.59217367,61074.0,61073.0,0.11063579]
[1722649384495,2.49259374,61074.0,61073.0,0.11063579]
[1722649384688,2.51559374,61074.0,61073.0,0.11063579]
[1722649385326,0.7292195,61074.0,61073.0,0.11063579]
[1722649385534,1.12407319,61074.0,61073.0,0.11063579]
[1722649385735,0.87845967,61074.0,61073.0,0.11063579]
[1722649385935,1.12406267,61074.0,61073.0,0.11063579]
[1722649386256,0.96660343,61074.0,61073.0,0.11063579]
[1722649386458,0.14844757,61074.0,61073.0,0.11063579]
[1722649386753,0.51685157,61074.0,61073.0,0.11063579]
[1722649386973,0.14844757,61074.0,61073.0,0.11063579]
[1722649387173,0.51685157,61074.0,61073.0,0.11063579]
[1722649387577,0.76245457,61074.0,61073.0,0.11063579]
[1722649387887,1.22281743,61074.0,61073.0,0.11063579]
[1722649388104,1.36963578,61074.0,61073.0,0.11063579]
[1722649388733,1.39263578,61074.0,61073.0,0.11063579]
[1722649388934,1.39262863,61074.0,61073.0,0.11063579]
[1722649389789,1.14702563,61074.0,61073.0,0.11063579]
[1722649390297,1.39262863,61074.0,61073.0,0.11063579]
[1722649390845,1.54390002,61074.0,61073.0,0.11063579]
[1722649391077,1.84768809,61074.0,61073.0,0.00373643]
[1722649391286,1.84768809,61074.0,61073.0,1e-08]
[1722649391486,2.09329109,61074.0,61073.0,1e-08]
[1722649392181,0.36081885,61074.0,61073.0,1e-08]
[1722649392381,0.14340879,61074.0,61073.0,1e-08]
[1722649392601,0.72922512,61074.0,61073.0,1e-08]
[1722649392796,0.35256166,61074.0,61073.0,1e-08]
[1722649392989,0.35256166,61074.0,61073.0,0.06310001]
[1722649392990,0.1484293,61074.0,61073.0,0.06310001]
[1722649393208,0.5168333,61074.0,61073.0,0.06310001]
[1722649393393,0.1484293,61074.0,61073.0,0.06310001]
[1722649393597,0.2712303,61074.0,61073.0,0.06310001]
[1722649393938,0.7624363,61074.0,61073.0,0.06310001]
[1722649394218,0.2712303,61074.0,61073.0,0.06310001]
[1722649394373,0.20579332,61074.0,61073.0,0.06310001]
[1722649394580,0.1484293,61074.0,61073.0,0.06310001]
[1722649394791,0.5168333,61074.0,61073.0,0.06310001]
[1722649394983,0.57419732,61074.0,61073.0,0.06310001]
[1722649395298,0.47138521,61074.0,61073.0,0.06310001]
[1722649395637,0.20573396,61074.0,61073.0,0.06310001]
[1722649395767,0.01234833,61074.0,61073.0,0.06310001]
[1722649395964,0.14841365,61074.0,61073.0,0.06310001]
[1722649396628,0.27121465,61074.0,61073.0,0.06310001]
[1722649396783,0.32852472,61074.0,61073.0,0.06310001]
[1722649396986,0.14841365,61074.0,61073.0,0.06310001]
[1722649397982,0.27121465,61074.0,61073.0,0.06310001]
[1722649398479,0.14841365,61074.0,61073.0,0.06310001]
[1722649399452,0.76242065,61074.0,61073.0,0.06310001]
[1722649400409,0.76242065,61074.0,61073.0,1e-08]
[1722649400410,1.37081706,61074.0,61073.0,1e-08]
[1722649400609,1.79669539,61074.0,61073.0,1e-08]
[1722649400796,1.73942006,61074.0,61073.0,1e-08]
[1722649400996,0.46654882,61074.0,61073.0,1e-08]
[1722649401238,0.34374782,61074.0,61073.0,1e-08]
[1722649401443,0.46654882,61074.0,61073.0,1e-08]
[1722649401618,0.20574135,61074.0,61073.0,1e-08]
[1722649401912,0.14841365,61074.0,61073.0,1e-08]
[1722649402329,0.14841365,61074.0,61073.0,0.15745925]
[1722649402701,0.14839638,61074.0,61073.0,0.15745925]
[1722649403101,0.01234833,61074.0,61073.0,0.15745925]
[1722649403281,0.00083,61074.0,61073.0,1e-08]
[1722649403628,0.00083,61074.0,61073.0,0.15745925]
[1722649403982,0.01035654,61074.0,61073.0,0.15745925]
[1722649404185,0.00083,61074.0,61073.0,0.15745925]
[1722649404970,0.00083,61074.0,61073.0,0.30493379]
[1722649405195,0.00083,61074.0,61073.0,0.40493379]
[1722649405615,0.00083,61074.0,61073.0,0.41492829]
[1722649405798,0.0136709,61085.0,61076.0,0.0631]
[1722649405994,0.0136709,61085.0,61077.0,0.1607334]
[1722649406200,0.0136709,61085.0,61078.0,0.1442]
[1722649406404,0.0136709,61085.0,61079.0,0.16073332]
[1722649406607,0.0136709,61085.0,61080.0,0.0631]
[1722649406814,0.0136709,61085.0,61081.0,0.15745924]
[1722649408291,0.0136709,61085.0,61084.0,0.19626069]
[1722649408493,0.04890004,61104.0,61093.0,0.1471]
[1722649408725,0.00967451,61103.0,61094.0,0.25745924]
[1722649408939,0.04890004,61108.0,61094.0,0.26073251]
[1722649409069,0.19484713,61107.0,61094.0,0.26073251]
[1722649409275,0.13599945,61106.0,61094.0,0.25745924]
[1722649409487,0.17163404,61108.0,61094.0,0.25745924]
[1722649409683,0.14594849,61107.0,61094.0,0.25745924]
[1722649409865,0.00994764,61107.0,61094.0,0.26073251]
[1722649410904,0.04890004,61111.0,61094.0,0.26073251]
[1722649411081,0.00990841,61112.0,61094.0,0.26073251]
[1722649411082,0.01008269,61106.0,61094.0,0.26073251]
[1722649411284,0.15200266,61113.0,61094.0,0.26073251]
[1722649411285,0.00157439,61116.0,61100.0,0.066]
[1722649411593,0.122714,61118.0,61101.0,0.15745924]
[1722649411783,0.01008269,61115.0,61101.0,0.15745924]
[1722649411994,0.01008269,61115.0,61103.0,0.066]
[1722649412212,0.01008269,61115.0,61104.0,0.16073189]
[1722649412372,0.07875194,61124.0,61106.0,0.2398]
[1722649412373,0.00157439,61122.0,61106.0,0.2398]
[1722649412589,0.07875194,61124.0,61108.0,0.1471]
[1722649412918,0.00157439,61128.0,61110.0,0.066]
[1722649413124,0.01008269,61127.0,61111.0,0.16073157]
[1722649413238,0.122685,61132.0,61112.0,0.1]
[1722649413444,0.01008269,61130.0,61113.0,0.15745924]
[1722649413652,0.13277169,61130.0,61113.0,0.15745924]
[1722649413861,0.01008269,61130.0,61114.0,0.0032723]
[1722649414076,0.01008269,61130.0,61116.0,0.1471]
[1722649414275,0.13277269,61130.0,61116.0,0.30455924]
[1722649414895,0.01008269,61130.0,61116.0,0.30455924]
[1722649415353,0.122691,61129.0,61116.0,0.30455924]
[1722649415636,0.01008269,61130.0,61116.0,0.30455924]
[1722649415792,0.25386603,61132.0,61117.0,0.15745924]
[1722649415793,0.01024694,61128.0,61117.0,0.15745924]
[1722649415989,0.13117903,61132.0,61117.0,0.15745924]
[1722649416190,0.01024694,61127.0,61117.0,0.15745924]
[1722649416399,0.25386603,61132.0,61116.0,0.1471]
[1722649416400,0.07875194,61123.0,61116.0,0.1471]
[1722649416604,0.023,61122.0,61109.0,0.066]
[1722649416807,0.07875194,61113.0,61109.0,0.066]
[1722649417004,0.00157439,61112.0,61109.0,0.066]
[1722649417267,0.12430039,61112.0,61109.0,0.066]
[1722649417466,0.01048783,61111.0,61109.0,0.066]
[1722649417739,0.00157439,61110.0,61109.0,0.066]
[1722649417884,0.08032633,61116.0,61109.0,0.066]
[1722649418084,0.0104427,61115.0,61109.0,0.066]
[1722649418284,0.00157439,61114.0,61109.0,0.066]
[1722649418732,0.0104427,61113.0,61109.0,0.066]
[1722649419064,0.122712,61119.0,61109.0,0.066]
[1722649419265,0.25386378,61121.0,61109.0,0.066]
[1722649419266,0.1346801,61118.0,61109.0,0.066]
[1722649419471,0.12272,61115.0,61109.0,0.066]
[1722649419648,0.01197776,61114.0,61109.0,0.066]
[1722649419834,0.01040337,61114.0,61109.0,0.066]
[1722649420031,0.24544,61115.0,61109.0,0.066]
[1722649420249,0.01197776,61114.0,61109.0,0.066]
[1722649421166,0.00157439,61114.0,61109.0,0.066]
[1722649421382,0.245444,61114.0,61109.0,0.066]
[1722649421597,0.20148094,61110.0,61109.0,0.066]
[1722649421920,0.01198817,61113.0,61102.0,0.066]
[1722649421921,0.122743,61103.0,61102.0,0.066]
[1722649422068,0.13315678,61103.0,61102.0,0.066]
[1722649422494,0.01041378,61103.0,61102.0,0.066]
[1722649422707,0.122743,61103.0,61102.0,0.066]
[1722649422918,0.122762,61094.0,61089.0,0.0811]
[1722649423116,0.00157439,61093.0,61090.0,0.066]
[1722649423352,0.01037923,61092.0,61090.0,0.066]
[1722649423482,0.12434139,61091.0,61090.0,0.066]
[1722649423679,0.37840484,61091.0,61090.0,0.066]
[1722649423881,0.01010284,61091.0,61090.0,0.066]
[1722649424080,0.00157439,61094.0,61090.0,0.066]
[1722649424325,0.01010327,61093.0,61090.0,0.066]
[1722649424501,0.00157439,61092.0,61090.0,0.066]
[1722649424705,0.245494,61102.0,61090.0,0.066]
[1722649424706,0.01007945,61091.0,61090.0,0.066]
[1722649424905,0.00157439,61101.0,61090.0,0.066]
[1722649425138,0.122756,61097.0,61090.0,0.066]
[1722649425306,0.122761,61094.0,61090.0,0.066]
[1722649425508,0.01165384,61093.0,61090.0,0.066]
[1722649425687,0.01007945,61093.0,61090.0,0.066]
[1722649425887,0.00157439,61092.0,61090.0,0.066]
[1722649426317,0.245489,61103.0,61090.0,0.066]
[1722649426318,0.00157439,61098.0,61090.0,0.066]
[1722649426524,0.01007945,61097.0,61090.0,0.066]
[1722649426720,0.00157439,61096.0,61090.0,0.066]
[1722649426924,0.245495,61101.0,61079.0,0.00852689]
[1722649426925,0.245526,61094.0,61086.0,0.066]
[1722649427137,0.00157439,61093.0,61086.0,0.066]
[1722649427354,0.01007945,61092.0,61086.0,0.066]
[1722649427555,0.00157439,61091.0,61086.0,0.066]
[1722649427964,0.00157439,61091.0,61087.0,0.15745924]
[1722649428195,0.01007945,61090.0,61087.0,0.15745924]
[1722649428393,0.00157439,61102.0,61087.0,0.15745924]
[1722649428608,0.245463,61109.0,61087.0,0.15745924]
[1722649428609,0.13601652,61101.0,61088.0,0.0032737]
[1722649428783,0.13601652,61101.0,61090.0,0.0757]
[1722649428784,0.01007945,61101.0,61090.0,0.0757]
[1722649429006,0.01007945,61101.0,61092.0,0.0614]
[1722649429230,0.12431039,61107.0,61093.0,0.15745924]
[1722649429430,0.13600027,61106.0,61093.0,0.15745924]
[1722649429608,0.00157439,61105.0,61093.0,0.15745924]
[1722649429820,0.13757284,61105.0,61092.0,0.1614]
[1722649429983,0.13599845,61104.0,61092.0,0.31885924]
[1722649430185,0.00157439,61103.0,61092.0,0.31885924]
[1722649430391,0.13600376,61102.0,61092.0,0.31885924]
[1722649430587,0.13600376,61102.0,61092.0,0.0614]
[1722649430588,0.00157439,61101.0,61092.0,0.0614]
[1722649430812,0.245507,61098.0,61092.0,0.0614]
[1722649431057,0.13600376,61100.0,61092.0,0.0614]
[1722649431058,0.122763,61093.0,61092.0,0.0614]
[1722649431237,0.122768,61091.0,61087.0,0.0614]
[1722649431436,0.01007945,61093.0,61087.0,0.0614]
[1722649431697,0.13759557,61092.0,61087.0,0.0614]
[1722649431897,0.01165384,61092.0,61087.0,0.0614]
[1722649432138,0.01007945,61092.0,61087.0,0.0614]
[1722649432344,0.01165384,61091.0,61087.0,0.0614]
[1722649432788,0.01007945,61091.0,61087.0,0.0614]
[1722649432960,0.00157439,61090.0,61087.0,0.0614]
[1722649433160,0.01007945,61090.0,61087.0,0.0614]
[1722649433367,0.00157439,61099.0,61087.0,0.0614]
[1722649433594,0.122762,61094.0,61087.0,0.0614]
[1722649433749,0.13758994,61093.0,61087.0,0.0614]
[1722649433953,0.00157439,61093.0,61087.0,0.0614]
[1722649434147,0.14609671,61092.0,61087.0,0.0614]
[1722649434349,0.26036166,61091.0,61087.0,0.0614]
[1722649434549,0.00157439,61091.0,61087.0,0.0614]
[1722649434777,0.01007945,61090.0,61087.0,0.0614]
[1722649434976,0.00157439,61089.0,61087.0,0.0614]
[1722649435352,0.01005564,61088.0,61087.0,0.0614]
[1722649435956,0.00157439,61092.0,61087.0,0.0614]
[1722649436179,0.14607755,61091.0,61087.0,0.0614]
[1722649436383,0.1375963,61090.0,61087.0,0.0614]
[1722649436675,0.00157439,61090.0,61087.0,0.0614]
[1722649437123,0.00157439,61097.0,61087.0,0.0614]
[1722649437351,0.01005564,61096.0,61087.0,0.0614]
[1722649437504,0.122764,61093.0,61087.0,0.0614]
[1722649437702,0.12434039,61092.0,61087.0,0.0614]
[1722649437904,0.13438613,61092.0,61087.0,0.0614]
[1722649438107,0.13601978,61091.0,61087.0,0.0614]
[1722649438283,0.00157439,61090.0,61087.0,0.0614]
[1722649438689,0.01004574,61089.0,61087.0,0.0614]
[1722649438891,0.00157439,61088.0,61087.0,0.0614]
[1722649439561,0.01004574,61088.0,61087.0,0.0614]
[1722649439964,0.13602557,61088.0,61087.0,0.0614]
[1722649440167,0.01004574,61088.0,61087.0,0.0614]
[1722649440777,0.00157439,61095.0,61087.0,0.0614]
[1722649440898,0.13602364,61094.0,61087.0,0.0614]
[1722649441144,0.14764121,61093.0,61087.0,0.0614]
[1722649441327,0.13602108,61092.0,61087.0,0.0614]
[1722649441529,0.00240439,61091.0,61087.0,0.0614]
[1722649441774,0.1460751,61090.0,61087.0,0.0614]
[1722649441971,0.13759877,61089.0,61087.0,0.0614]
[1722649442190,0.00157439,61089.0,61087.0,0.0614]
[1722649442427,0.0100535,61088.0,61087.0,0.0614]
[1722649443027,0.00083,61091.0,61087.0,0.0614]
[1722649443227,0.01005444,61088.0,61087.0,0.0614]
[1722649443434,0.00083,61091.0,61087.0,0.0614]
[1722649443685,0.00083,61091.0,61089.0,0.2398]
[1722649443859,0.00083,61091.0,61090.0,0.45251993]
[1722649445851,0.00083,61091.0,61090.0,0.2459]
[1722649446059,0.00083,61091.0,61090.0,0.40335924]
[1722649446256,0.00083,61091.0,61090.0,0.69231993]
[1722649448343,0.00083,61091.0,61090.0,0.70231443]
[1722649448492,0.00083,61091.0,61090.0,0.69231993]
[1722649450178,0.00083,61091.0,61090.0,0.70064392]
[1722649450378,0.00083,61091.0,61090.0,0.71263842]
[1722649450579,0.00157439,61111.0,61098.0,0.14]
[1722649450889,0.13598752,61110.0,61099.0,0.16073223]
[1722649451092,0.13756191,61109.0,61099.0,0.16073223]
[1722649451298,0.13598752,61108.0,61099.0,0.16073223]
[1722649451663,0.01026056,61107.0,61099.0,0.16073223]
[1722649451844,0.00157439,61115.0,61099.0,0.16073223]
[1722649452044,0.13597589,61114.0,61099.0,0.16073223]
[1722649452257,0.00157439,61113.0,61099.0,0.16073223]
[1722649452481,0.00157439,61113.0,61100.0,0.1]
[1722649452482,0.13597589,61112.0,61100.0,0.1]
[1722649452611,0.00157439,61111.0,61101.0,0.16073211]
[1722649452812,0.13597589,61110.0,61101.0,0.16073211]
[1722649453014,0.00157439,61109.0,61101.0,0.16073211]
[1722649453213,0.00157439,61109.0,61101.0,0.15745924]
[1722649453438,0.07875194,61116.0,61101.0,0.15745924]
[1722649453439,0.01026056,61108.0,61101.0,0.15745924]
[1722649453639,0.00157439,61115.0,61101.0,0.15745924]
[1722649453842,0.13597683,61114.0,61101.0,0.15745924]
[1722649453997,0.00157439,61113.0,61101.0,0.15745924]
[1722649454202,0.00157439,61113.0,61102.0,0.00327282]
[1722649454203,0.13597683,61112.0,61102.0,0.00327282]
[1722649454408,0.00157439,61111.0,61103.0,0.15745924]
[1722649454607,0.00157439,61111.0,61105.0,0.1916]
[1722649454608,0.13597683,61110.0,61105.0,0.1916]
[1722649454814,0.01183495,61111.0,61105.0,0.1916]
[1722649454815,0.01026056,61111.0,61107.0,0.083]
[1722649455068,0.00157439,61118.0,61108.0,0.15745924]
[1722649455241,0.13597077,61117.0,61109.0,0.1]
[1722649455441,0.00157439,61116.0,61110.0,0.15745924]
[1722649455845,0.14623258,61115.0,61110.0,0.15745924]
[1722649456021,0.13597202,61114.0,61110.0,0.15745924]
[1722649456683,0.01026056,61113.0,61110.0,0.15745924]
[1722649457094,0.00157439,61118.0,61110.0,0.15745924]
[1722649457405,0.07334722,61121.0,61110.0,0.15745924]
[1722649457406,0.13596972,61117.0,61110.0,0.15745924]
[1722649457546,0.13596972,61116.0,61110.0,0.15745924]
[1722649457964,0.14623028,61115.0,61110.0,0.15745924]
[1722649458168,0.13597129,61114.0,61110.0,0.15745924]
[1722649458368,0.0104015,61113.0,61110.0,0.15745924]
[1722649458657,0.05047254,61120.0,61110.0,0.15745924]
[1722649458658,0.00157439,61119.0,61110.0,0.15745924]
[1722649458846,0.13596926,61118.0,61110.0,0.15745924]
[1722649459053,0.00157439,61117.0,61110.0,0.15745924]
[1722649459208,0.13596926,61116.0,61110.0,0.15745924]
[1722649459392,0.13596926,61115.0,61110.0,0.15745924]
[1722649459617,0.01040176,61114.0,61110.0,0.15745924]
[1722649460021,0.00157439,61122.0,61110.0,0.15745924]
[1722649460373,0.13595775,61121.0,61112.0,0.0605]
[1722649460578,0.14636608,61121.0,61112.0,0.0605]
[1722649460704,0.00157439,61120.0,61112.0,0.0605]
[1722649461110,0.05047254,61123.0,61112.0,0.0605]
[1722649461310,0.01040833,61119.0,61112.0,0.0605]
[1722649461523,0.00157439,61118.0,61113.0,0.15745924]
[1722649461726,0.01040833,61118.0,61113.0,0.15745924]
[1722649461927,0.04893025,61123.0,61113.0,0.15745924]
[1722649462131,0.01040833,61117.0,61113.0,0.15745924]
[1722649462331,0.00157439,61121.0,61113.0,0.15745924]
[1722649462561,0.01040833,61116.0,61113.0,0.15745924]
[1722649462793,0.00157439,61121.0,61113.0,0.15745924]
[1722649462999,0.13595942,61120.0,61113.0,0.15745924]
[1722649463172,0.01040833,61120.0,61113.0,0.15745924]
[1722649464946,0.00157439,61119.0,61113.0,0.15745924]
[1722649465322,0.01040833,61118.0,61113.0,0.15745924]
[1722649465712,0.00157439,61123.0,61113.0,0.15745924]
[1722649465913,0.08916027,61117.0,61112.0,0.0605]
[1722649466115,0.00157439,61116.0,61102.0,0.0605]
[1722649466291,0.07875194,61110.0,61102.0,0.0605]
[1722649466511,0.13755391,61109.0,61102.0,0.0605]
[1722649466722,0.00157439,61109.0,61102.0,0.0605]
[1722649466960,0.01040833,61108.0,61102.0,0.0605]
[1722649467178,0.00157439,61107.0,61102.0,0.21795924]
[1722649467700,0.00157439,61112.0,61102.0,0.21795924]
[1722649467920,0.12429639,61114.0,61102.0,0.21795924]
[1722649468119,0.00157439,61110.0,61102.0,0.21795924]
[1722649468521,0.01040833,61109.0,61102.0,0.21795924]
[1722649468648,0.00157439,61108.0,61102.0,0.21795924]
[1722649468852,0.00157439,61108.0,61103.0,0.16073223]
[1722649469055,0.00157439,61115.0,61104.0,0.1916]
[1722649469299,0.13596991,61114.0,61105.0,0.15745924]
[1722649469478,0.00157439,61113.0,61110.0,0.1916]
[1722649469639,0.01040833,61114.0,61110.0,0.1916]
[1722649469640,0.01040833,61114.0,61111.0,0.15745924]
[1722649469845,0.00157439,61120.0,61111.0,0.15745924]
[1722649470040,0.13596466,61119.0,61111.0,0.15745924]
[1722649470296,0.00157439,61118.0,61111.0,0.15745924]
[1722649470497,0.13596466,61117.0,61111.0,0.15745924]
[1722649470740,0.00157439,61116.0,61111.0,0.15745924]
[1722649471114,0.01041848,61115.0,61111.0,0.15745924]
[1722649471358,0.00157439,61120.0,61111.0,0.15745924]
[1722649471552,0.1359639,61119.0,61111.0,0.15745924]
[1722649471794,0.00157439,61118.0,61111.0,0.15745924]
[1722649471968,0.1359639,61117.0,61111.0,0.15745924]
[1722649472120,0.00157439,61116.0,61115.0,1.0]
[1722649472327,0.14638238,61116.0,61115.0,1.0]
[1722649472606,0.1359639,61116.0,61115.0,1.0]
[1722649472732,0.1359639,61120.0,61115.0,1.0]
[1722649472938,0.00108543,61119.0,61115.0,1.15745924]
[1722649473155,0.1359639,61118.0,61115.0,1.15745924]
[1722649473480,0.01043827,61117.0,61115.0,1.15745924]
[1722649473816,0.1359639,61116.0,61115.0,1.15745924]
[1722649474397,0.1359639,61117.0,61115.0,1.15745924]
[1722649474968,0.00083,61118.0,61117.0,0.0601]
[1722649475193,0.00083,61118.0,61117.0,0.39833097]
[1722649476066,0.00083,61118.0,61117.0,0.40832547]
[1722649476265,0.00083,61118.0,61117.0,0.41032547]
[1722649476478,0.00083,61118.0,61117.0,0.39833097]
[1722649476785,0.01016401,61133.0,61128.0,0.1376]
[1722649476926,0.01016401,61133.0,61132.0,0.1916]
[1722649477130,0.01016401,61133.0,61132.0,0.35233036]
[1722649479008,0.01016401,61133.0,61132.0,0.51243036]
[1722649479211,0.01016401,61133.0,61132.0,0.58993036]
[1722649480121,0.01016401,61135.0,61132.0,0.59992486]
[1722649480249,0.01016401,61135.0,61134.0,0.29536637]
[1722649480455,0.01016401,61135.0,61134.0,0.43296637]
[1722649480654,0.01016401,61135.0,61134.0,0.53496637]
[1722649480856,0.01016401,61135.0,61134.0,0.52297187]
[1722649481109,0.01016401,61135.0,61134.0,0.44421993]
[1722649481960,0.01016401,61135.0,61134.0,0.34421993]
[1722649482159,0.01016401,61135.0,61134.0,0.29505924]
[1722649482388,0.01016401,61135.0,61127.0,0.21266069]
[1722649482505,0.01016401,61135.0,61128.0,0.16599226]
[1722649482717,0.01016401,61135.0,61125.0,0.0601]
[1722649482718,0.01094318,61134.0,61125.0,0.0601]
[1722649482922,0.13593539,61133.0,61125.0,0.0601]
[1722649483129,0.00157439,61132.0,61125.0,0.0601]
[1722649483335,0.13360259,61132.0,61125.0,0.0601]
[1722649483531,0.00157439,61131.0,61125.0,0.0601]
[1722649483775,0.245364,61134.0,61125.0,0.0601]
[1722649483776,0.00157439,61132.0,61125.0,0.0601]
[1722649483975,0.00157439,61134.0,61125.0,0.0601]
[1722649484518,0.01086085,61133.0,61132.0,0.04916069]
[1722649484718,0.01086085,61133.0,61132.0,0.28411993]
[1722649484894,0.01016401,61135.0,61132.0,0.28411993]
[1722649485098,0.01016401,61135.0,61133.0,0.16073036]
[1722649485674,0.01016401,61135.0,61134.0,0.1601]
[1722649485875,0.01016401,61135.0,61134.0,0.32083037]
[1722649486075,0.01016401,61135.0,61134.0,0.31755924]
[1722649487005,0.01016401,61135.0,61134.0,0.1601]
[1722649487281,0.01016401,61135.0,61134.0,0.0601]
[1722649487635,0.02104241,61135.0,61128.0,0.0601]
[1722649487839,0.02104241,61135.0,61129.0,0.15745924]
[1722649489687,0.01016401,61135.0,61129.0,0.15745924]
[1722649489868,0.0108784,61134.0,61129.0,0.15745924]
[1722649490926,0.245363,61134.0,61125.0,0.0775]
[1722649491090,0.01016401,61135.0,61125.0,0.0775]
[1722649491091,0.00157439,61132.0,61125.0,0.0775]
[1722649491494,0.01082624,61131.0,61125.0,0.0775]
[1722649491895,0.00157439,61132.0,61125.0,0.0775]
[1722649492099,0.01082624,61130.0,61125.0,0.0775]
[1722649492303,0.00157439,61130.0,61125.0,0.0775]
[1722649492512,0.01080272,61129.0,61125.0,0.0775]
[1722649492715,0.00157439,61131.0,61125.0,0.0775]
[1722649493110,0.25552501,61135.0,61118.0,0.0638]
[1722649493111,0.00157439,61129.0,61118.0,0.0638]
[1722649493336,0.00157439,61127.0,61118.0,0.0638]
[1722649493538,0.00157439,61125.0,61115.0,1.0]
[1722649493779,0.13594478,61126.0,61115.0,1.0]
[1722649493780,0.00157439,61123.0,61115.0,1.15745924]
[1722649493929,0.12427739,61123.0,61115.0,1.15745924]
[1722649494164,0.00157439,61121.0,61115.0,1.15745924]
[1722649494580,0.122702,61124.0,61115.0,1.15745924]
[1722649494755,0.00157439,61119.0,61116.0,0.1]
[1722649494955,0.00157439,61123.0,61116.0,0.1]
[1722649495192,0.12427839,61123.0,61116.0,0.1]
[1722649495376,0.00157439,61121.0,61116.0,0.1]
[1722649495888,0.01062905,61120.0,61116.0,0.114]
[1722649496094,0.00157439,61119.0,61116.0,0.114]
[1722649496296,0.00157439,61119.0,61117.0,0.15745924]
[1722649496466,0.122695,61128.0,61117.0,0.16073129]
[1722649496685,0.13752349,61127.0,61117.0,0.16073129]
[1722649496883,0.0122048,61127.0,61117.0,0.16073129]
[1722649497094,0.001,61120.0,61117.0,0.16073129]
[1722649497312,0.00157439,61119.0,61117.0,0.15745924]
[1722649497717,0.122699,61125.0,61116.0,0.128]
[1722649497718,0.122708,61121.0,61116.0,0.028]
[1722649497920,0.122713,61118.0,61117.0,0.013]
[1722649498357,0.25867519,61118.0,61117.0,0.024]
[1722649498558,0.26932488,61118.0,61117.0,0.013]
[1722649498760,0.13336269,61118.0,61117.0,0.027]
[1722649498960,0.14661517,61118.0,61117.0,0.027]
[1722649499164,0.14818956,61118.0,61117.0,0.027]
[1722649499366,0.14818956,61118.0,61117.0,0.031]
[1722649499716,0.14661517,61118.0,61117.0,0.031]
[1722649499915,0.14661517,61118.0,61117.0,0.018]
[1722649500146,0.14661517,61118.0,61117.0,0.031]
[1722649500147,0.76018017,61118.0,61117.0,0.031]
[1722649500388,0.76018496,61118.0,61117.0,0.031]
[1722649500575,0.62421469,61118.0,61117.0,0.031]
[1722649500728,1.00560947,61118.0,61117.0,0.018]
[1722649500930,1.00560947,61118.0,61117.0,0.026]
[1722649500931,1.16306871,61118.0,61117.0,0.026]
[1722649501137,1.16306871,61118.0,61117.0,0.008]
[1722649501138,1.2141431,61118.0,61117.0,0.008]
[1722649501343,1.08817432,61118.0,61117.0,0.008]
[1722649501545,0.859019,61116.0,61115.0,1.0]
[1722649501777,1.13076209,61116.0,61115.0,1.0]
[1722649501985,1.39013019,61116.0,61115.0,1.0]
[1722649502212,1.2525585,61116.0,61115.0,1.0]
[1722649502408,1.26675898,61116.0,61115.0,1.0]
[1722649502582,1.38855539,61116.0,61115.0,1.0]
[1722649502802,1.26675544,61116.0,61115.0,1.0]
[1722649503019,0.69453254,61116.0,61115.0,1.0]
[1722649503224,0.2692942,61116.0,61115.0,1.0]
[1722649503422,0.27086859,61116.0,61115.0,1.007]
[1722649503619,0.2692942,61116.0,61115.0,1.007]
[1722649504049,0.1465772,61116.0,61115.0,1.007]
[1722649504378,0.01058385,61116.0,61115.0,1.007]
[1722649504512,0.37873485,61116.0,61115.0,1.007]
[1722649504716,0.00157439,61121.0,61115.0,1.007]
[1722649504914,0.245413,61122.0,61115.0,1.007]
[1722649504915,0.0103638,61116.0,61115.0,1.007]
[1722649505163,0.122713,61118.0,61115.0,1.007]
[1722649505368,0.0103638,61116.0,61115.0,1.007]
[1722649505570,0.368151,61116.0,61115.0,1.007]
[1722649505779,0.75992192,61116.0,61115.0,1.007]
[1722649505971,0.75992588,61116.0,61115.0,1.007]
[1722649506184,0.51449188,61116.0,61115.0,1.007]
[1722649506393,0.14634088,61116.0,61115.0,1.002]
[1722649506609,0.0103638,61116.0,61115.0,1.1488]
[1722649506834,0.00157439,61125.0,61115.0,1.149713]